Workbook

Sheet Лист1
K2: =SUM(D3:K3) -> 28 | S2: =SUM(L3:S3) -> 92
D3: 0 | E3: =+D3+1 -> 1 | F3: =+E3+1 -> 2 | G3: 3 | H3: 4 | I3: 5 | J3: 6 | K3: 7 | L3: 8 | M3: 9 | N3: 10 | O3: 11 | P3: 12 | Q3: 13 | R3: 14 | S3: 15 | T3: =SUM(D3:S3) -> 120
D4: A | E4: B | F4: A | G4: C | H4: A | I4: A | J4: C | K4: B | L4: C | M4: A | N4: B | O4: C | P4: B | Q4: A | R4: A | S4: B
D5: 0 | E5: 2 | F5: 4 | G5: 5 | H5: 9 | I5: 13 | J5: 14 | K5: 1 | L5: 7 | M5: 10 | N5: 12 | O5: 15 | P5: 3 | Q5: 6 | R5: 8 | S5: 11
C6: 0 | D6: A | E6: A | F6: A | G6: A | H6: A | I6: A | J6: A | K6: B | L6: B | M6: B | N6: B | O6: B | P6: C | Q6: C | R6: C | S6: C
D7: 4 | E7: 13 | F7: 0 | G7: 9 | H7: 14 | I7: 2 | J7: 5 | K7: 1 | L7: 12 | M7: 15 | N7: 7 | O7: 10 | P7: 3 | Q7: 8 | R7: 6 | S7: 11
C8: 1 | D8: A | E8: A | F8: B | G8: B | H8: B | I8: C | J8: C | K8: A | L8: A | M8: A | N8: C | O8: C | P8: A | Q8: A | R8: B | S8: B
D9: 13 | E9: 4 | F9: 0 | G9: 14 | H9: 9 | I9: 2 | J9: 5 | K9: 12 | L9: 15 | M9: 1 | N9: 7 | O9: 10 | P9: 3 | Q9: 8 | R9: 11 | S9: 6
C10: 2 | D10: B | E10: C | F10: A | G10: A | H10: C | I10: A | J10: B | K10: A | L10: B | M10: C | N10: A | O10: B | P10: A | Q10: B | R10: A | S10: C | U10: 2834
D11: 13 | E11: 4 | F11: 14 | G11: 0 | H11: 9 | I11: 2 | J11: 5 | K11: 12 | L11: 15 | M11: 1 | N11: 7 | O11: 10 | P11: 3 | Q11: 8 | R11: 11 | S11: 6 | U11: 1686
C12: 3 | F12: B | G12: C | U12: 1169
U13: =SUM(U10:U12) -> 5689
K14: =SUM(D15:K15) -> 59 | U14: 22140
D15: 13 | E15: 4 | F15: 14 | G15: 0 | H15: 9 | I15: 2 | J15: 5 | K15: 12 | L15: 15 | M15: 1 | N15: 7 | O15: 10 | P15: 3 | Q15: 8 | R15: 11 | S15: 6 | T15: =SUM(D15:S15) -> 120 | U15: =+U14-U13 -> 16451
D16: =+D15-1 -> 12 | E16: =+E15-1 -> 3 | F16: 13 | G16: 15 | H16: 8 | I16: 1 | J16: 4 | K16: 11 | L16: 14 | M16: 0 | N16: 6 | O16: 9 | P16: 2 | Q16: 7 | R16: 10 | S16: 5
C17: BWT | D17: B | E17: C | F17: A | G17: B | H17: C | I17: B | J17: A | K17: C | L17: A | M17: A | N17: C | O17: A | P17: A | Q17: B | R17: B | S17: A
D18: 0 | E18: =+D18+1 -> 1 | F18: =+E18+1 -> 2 | G18: 3 | H18: 4 | I18: 5 | J18: 6 | K18: 7 | L18: 8 | M18: 9 | N18: 10 | O18: 11 | P18: 12 | Q18: 13 | R18: 14 | S18: 15
D19: =+D39 -> 2 | E19: =+E39 -> 6 | F19: 8 | G19: 9 | H19: 11 | I19: 12 | J19: 15 | K19: 0 | L19: 3 | M19: 5 | N19: 13 | O19: 14 | P19: 1 | Q19: 4 | R19: 7 | S19: 10
D22: 0 | E22: 2 | F22: 8 | G22: 3 | H22: 9 | I22: 5 | J22: 12 | K22: 1 | L22: 6 | M22: 15 | N22: 10 | O22: 13 | P22: 4 | Q22: 11 | R22: 14 | S22: 7
D23: A | E23: A | F23: B | G23: A | H23: B | I23: A | J23: C | K23: A | L23: A | M23: C | N23: B | O23: C | P23: A | Q23: B | R23: C | S23: B
K27: A
D28: B | E28: C | F28: A | G28: B | H28: C | I28: B | J28: A | K28: C
D29: 0 | E29: =+D29+1 -> 1 | F29: =+E29+1 -> 2 | G29: 3 | H29: 4 | I29: 5 | J29: 6 | K29: 7 | L29: 8 | M29: 9 | N29: 10 | O29: 11 | P29: 12 | Q29: 13 | R29: 14 | S29: 15
D30: =+D39 -> 2 | E30: 6 | F30: 8 | G30: 9 | H30: 11 | I30: 12 | K30: =+K39 -> 0 | L30: =+L39 -> 3 | M30: 5 | P30: =+P39 -> 1 | Q30: =+Q39 -> 4 | R30: 7 | S30: 10
C33: MTF | D33: 1 | E33: 2 | F33: 2 | G33: 2 | H33: 2 | I33: 1 | J33: 2 | K33: 2 | L33: 1 | M33: 0 | N33: 1 | O33: 1 | P33: 0 | Q33: 2 | R33: 0 | S33: 1 | T33: =SUM(D33:S33) -> 20
C34: A | D34: B | E34: C | F34: A | G34: B | H34: C | I34: B | J34: A | K34: C | L34: A | M34: A | N34: C | O34: A | P34: A | Q34: B | R34: B | S34: A
C35: B | D35: A | E35: B | F35: C | G35: A | H35: B | I35: C | J35: B | K35: A | L35: C | M35: C | N35: A | O35: C | P35: C | Q35: A | R35: A | S35: B
C36: C | D36: C | E36: A | F36: B | G36: C | H36: A | I36: A | J36: C | K36: B | L36: B | M36: B | N36: B | O36: B | P36: B | Q36: C | R36: C | S36: C
C39: TNUM | D39: 2 | E39: 6 | F39: 8 | G39: 9 | H39: 11 | I39: 12 | J39: 15 | K39: 0 | L39: 3 | M39: 5 | N39: 13 | O39: 14 | P39: 1 | Q39: 4 | R39: 7 | S39: 10
D40: 0 | E40: =+D40+1 -> 1 | F40: =+E40+1 -> 2 | G40: 3 | H40: 4 | I40: 5 | J40: 6 | K40: 7 | L40: 8 | M40: 9 | N40: 10 | O40: 11 | P40: 12 | Q40: 13 | R40: 14 | S40: 15
D41: =D17 -> B | E41: =E17 -> C | F41: A | G41: B | H41: C | I41: B | J41: A | K41: C | L41: A | M41: A | N41: C | O41: A | P41: A | Q41: B | R41: B | S41: A
D45: =+D41 -> B | E45: =+E41 -> C | F45: A | G45: B | H45: C | I45: B | J45: A | K45: C | L45: A | M45: A | N45: C | O45: A | P45: A | Q45: B | R45: B | S45: A
D46: 0 | E46: =+D46+1 -> 1 | F46: =+E46+1 -> 2 | G46: 3 | H46: 4 | I46: 5 | J46: 6 | K46: 7 | L46: 8 | M46: 9 | N46: 10 | O46: 11 | P46: 12 | Q46: 13 | R46: 14 | S46: 15
C47: 0 | D47: B | E47: C | F47: A | G47: B | H47: . | I47: . | J47: . | K47: . | L47: . | M47: . | N47: . | O47: . | P47: . | Q47: . | R47: . | S47: . | T47: 0 | U47: 1 | V47: 0
C48: =+C47+1 -> 1 | E48: C | F48: A | G48: B | H48: C | I48: . | J48: . | K48: . | L48: . | M48: . | N48: . | O48: . | P48: . | Q48: . | R48: . | S48: . | T48: 0 | U48: 1 | V48: 1
C49: =+C48+1 -> 2 | F49: A | G49: B | H49: C | I49: . | J49: A | K49: . | L49: . | M49: . | N49: . | O49: . | P49: . | Q49: . | R49: . | S49: . | T49: 1 | U49: 2 | V49: 2
C50: 3 | G50: B | H50: C | I50: B | J50: A | K50: . | L50: . | M50: . | N50: . | O50: . | P50: . | Q50: . | R50: . | S50: . | T50: 0 | U50: 1 | V50: 3
C51: 4 | H51: C | I51: B | J51: A | K51: C | L51: . | M51: . | N51: . | O51: . | P51: . | Q51: . | R51: . | S51: . | T51: 0 | U51: 1 | V51: 4
C52: 5 | I52: B | J52: A | K52: C | L52: . | M52: . | N52: . | O52: . | P52: . | Q52: B | R52: . | S52: . | T52: 5 | U52: 6 | V52: 5
C53: 6 | J53: A | K53: C | L53: A | M53: . | N53: . | O53: . | P53: . | Q53: B | R53: . | S53: . | T53: 0 | U53: 1 | V53: 6
C54: 7 | K54: C | L54: A | M54: . | N54: C | O54: . | P54: . | Q54: B | R54: . | S54: . | T54: 1 | U54: 2 | V54: 7
C55: 8 | L55: A | M55: A | N55: C | O55: . | P55: . | Q55: B | R55: . | S55: . | T55: 0
C56: 9 | M56: A | N56: C | O56: A | P56: . | Q56: B | R56: . | S56: . | T56: 0 | U56: 1 | V56: 8
C57: 10 | N57: C | O57: A | P57: . | Q57: B | R57: . | S57: . | U57: 0 | V57: 9
C58: 11 | O58: A | P58: A | Q58: B | R58: . | S58: . | T58: 0
C59: 12 | P59: A | Q59: B | R59: . | S59: A | T59: 1 | U59: 2 | V59: 10
C60: 13 | Q60: B | R60: B | S60: A | T60: 0
C61: 14 | R61: B | S61: A | U61: 0 | V61: 11
C62: 15 | S62: A | U62: 0 | V62: 12
D64: =+D18 -> 0 | E64: =+E18 -> 1 | F64: 2 | G64: 3 | H64: 4 | I64: 5 | J64: 6 | K64: 7 | L64: 8 | M64: 9 | N64: 10 | O64: 11 | P64: 12 | Q64: 13 | R64: 14 | S64: 15 | T64: 0
D65: =+D19 -> 2 | E65: =+E19 -> 6 | F65: 8 | G65: 9 | H65: 11 | I65: 12 | J65: 15 | K65: 0 | L65: 3 | M65: 5 | N65: 13 | O65: 14 | P65: 1 | Q65: 4 | R65: 7 | S65: 10 | T65: 0
D68: =+D45 -> B | E68: =+E45 -> C | F68: A | G68: B | H68: C | I68: B | J68: A | K68: C | L68: A | M68: A | N68: C | O68: A | P68: A | Q68: B | R68: B | S68: A
D69: =+D46 -> 0 | E69: =+E46 -> 1 | F69: 2 | G69: 3 | H69: 4 | I69: 5 | J69: 6 | K69: 7 | L69: 8 | M69: 9 | N69: 10 | O69: 11 | P69: 12 | Q69: 13 | R69: 14 | S69: 15
C70: =+C47 -> 0 | D70: B | E70: C | F70: A | G70: B | T70: 0
C71: =+C48 -> 1 | E71: C | F71: A | G71: B | H71: C | T71: 0
C72: 2 | F72: A | G72: B | H72: C | I72: . | J72: A | T72: 1
C73: 3 | G73: B | H73: C | I73: B | J73: A | T73: 0
C74: 4 | H74: C | I74: B | J74: A | K74: C | T74: 0
C75: 5 | I75: B | J75: A | K75: C | L75: . | M75: . | N75: . | O75: . | P75: . | Q75: . | R75: B | T75: 6
C76: 6 | J76: A | K76: C | L76: A | R76: B
C77: 7 | K77: C | L77: A | M77: . | N77: C | R77: B | T77: 1
C78: 8 | L78: A | M78: A | N78: C | R78: B
C79: 9 | M79: A | N79: C | O79: . | P79: A | R79: B | T79: 1
C80: 10 | N80: C | P80: A | R80: B
C81: 11 | O81: A | P81: A | R81: B
C82: 12 | P82: A | R82: B
C83: 13 | Q83: B | R83: B
C84: 14 | R84: B
C85: 15 | S85: A
D90: TNUM | E90: 2 | F90: 6 | G90: 8 | H90: 9 | I90: 11 | J90: 12 | K90: 15 | L90: 0 | M90: 3 | N90: 5 | O90: 13 | P90: 14 | Q90: 1 | R90: 4 | S90: 7 | T90: 10
E91: 0 | F91: =+E91+1 -> 1 | G91: =+F91+1 -> 2 | H91: 3 | I91: 4 | J91: 5 | K91: 6 | L91: 7 | M91: 8 | N91: 9 | O91: 10 | P91: 11 | Q91: 12 | R91: 13 | S91: 14 | T91: 15
E92: =E97 -> B | F92: C | G92: A | H92: B | I92: C | J92: B | K92: A | L92: C | M92: A | N92: A | O92: C | P92: A | Q92: A | R92: B | S92: B | T92: A
E95: 13 | F95: 4 | G95: 14 | H95: 0 | I95: 9 | J95: 2 | K95: 5 | L95: 12 | M95: 15 | N95: 1 | O95: 7 | P95: 10 | Q95: 3 | R95: 8 | S95: 11 | T95: 6
E96: =+E95-1 -> 12 | F96: =+F95-1 -> 3 | G96: =+G95-1 -> 13 | H96: 15 | I96: =+I95-1 -> 8 | J96: 1 | K96: 4 | L96: 11 | M96: 14 | N96: 0 | O96: 6 | P96: 9 | Q96: 2 | R96: 7 | S96: 10 | T96: 5
D97: BWT | E97: B | F97: C | G97: A | H97: B | I97: C | J97: B | K97: A | L97: C | M97: A | N97: A | O97: C | P97: A | Q97: A | R97: B | S97: B | T97: A
E98: 0 | F98: =+E98+1 -> 1 | G98: =+F98+1 -> 2 | H98: 3 | I98: 4 | J98: 5 | K98: 6 | L98: 7 | M98: 8 | N98: 9 | O98: 10 | P98: 11 | Q98: 12 | R98: 13 | S98: 14 | T98: 15
E99: =+E90 -> 2 | F99: 6 | G99: 8 | H99: 9 | I99: 11 | J99: 12 | K99: 15 | L99: 0 | M99: 3 | N99: 5 | O99: 13 | P99: 14 | Q99: 1 | R99: 4 | S99: 7 | T99: 10
E101: B | F101: C | G101: A | H101: B | I101: C | J101: B | K101: A | L101: C | M101: A | N101: A | O101: C | P101: A | Q101: A | R101: B | S101: B | T101: A
C102: A | D102: -1 | E102: -1 | F102: -1 | G102: 2 | H102: 2 | I102: 2 | J102: 2 | K102: 6 | L102: 6 | M102: 8 | N102: 9 | O102: 9 | P102: 11 | Q102: 12 | R102: 12 | S102: 12 | T102: 15
C103: B | D103: -1 | E103: 0 | F103: 0 | G103: 1 | H103: 3 | I103: 3 | J103: 5 | K103: 6 | L103: 6 | M103: 7 | N103: 8 | O103: 8 | P103: 9 | Q103: 10 | R103: 13 | S103: 14 | T103: 15
C104: C | D104: -1 | E104: 0 | F104: 1 | G104: 2 | H104: 3 | I104: 4 | J104: 5 | K104: 6 | L104: 7 | M104: 8 | N104: 9 | O104: 10 | P104: 11 | Q104: 12 | R104: 13 | S104: 14 | T104: 15
E106: 2 | F106: 3 | G106: 1 | H106: 0 | I106: 1 | J106: 0 | K106: 2 | L106: 0 | M106: 1 | N106: 1 | O106: 2 | P106: 0 | Q106: 0 | R106: 0 | S106: 0 | T106: 0 | U106: =SUM(E106:T106) -> 13
E108: 0 | F108: 0 | G108: 2 | H108: 1 | I108: 0 | J108: 1 | K108: 3 | L108: 0 | M108: 1 | N108: 0 | O108: 0 | P108: 1 | Q108: 0 | R108: 2 | S108: 0 | T108: 2
E110: 2 | F110: 3 | G110: 1 | H110: 0 | I110: 1 | J110: 0 | K110: 2 | L110: 0 | M110: 2 | N110: 1 | O110: 7 | P110: 0 | Q110: 1 | R110: 2 | S110: 2 | T110: 2
E112: 2 | F112: 2 | G112: 1 | H112: 0 | I112: 1 | J112: 0 | K112: 1 | L112: 0 | M112: 2 | N112: 1 | O112: 2 | P112: 0 | Q112: 1 | R112: 2 | S112: 2 | T112: 1 | U112: =SUM(E112:T112) -> 18
E114: 0 | F114: 2 | G114: 8 | H114: 3 | I114: 9 | J114: 5 | K114: 12 | L114: 1 | M114: 6 | N114: 15 | O114: 10 | P114: 13 | Q114: 4 | R114: 11 | S114: 14 | T114: 7
E115: B | F115: A | G115: A | H115: B | I115: A | J115: B | K115: A | L115: C | M115: A | N115: A | O115: C | P115: B | Q115: C | R115: A | S115: B | T115: C
D118: TNUM | E118: 2 | F118: 6 | G118: 8 | H118: 9 | I118: 11 | J118: 12 | K118: 15 | L118: 0 | M118: 3 | N118: 5 | O118: 13 | P118: 14 | Q118: 1 | R118: 4 | S118: 7 | T118: 10
E119: 0 | F119: =+E119+1 -> 1 | G119: =+F119+1 -> 2 | H119: 3 | I119: 4 | J119: 5 | K119: 6 | L119: 7 | M119: 8 | N119: 9 | O119: 10 | P119: 11 | Q119: 12 | R119: 13 | S119: 14 | T119: 15
E120: =E125 -> B | F120: C | G120: A | H120: B | I120: C | J120: B | K120: A | L120: C | M120: A | N120: A | O120: C | P120: A | Q120: A | R120: B | S120: B | T120: A
E123: 13 | F123: 4 | G123: 14 | H123: 0 | I123: 9 | J123: 2 | K123: 5 | L123: 12 | M123: 15 | N123: 1 | O123: 7 | P123: 10 | Q123: 3 | R123: 8 | S123: 11 | T123: 6
E124: =+E123-1 -> 12 | F124: =+F123-1 -> 3 | G124: =+G123-1 -> 13 | H124: 15 | I124: =+I123-1 -> 8 | J124: 1 | K124: 4 | L124: 11 | M124: 14 | N124: 0 | O124: 6 | P124: 9 | Q124: 2 | R124: 7 | S124: 10 | T124: 5
D125: BWT | E125: B | F125: C | G125: A | H125: B | I125: C | J125: B | K125: A | L125: C | M125: A | N125: A | O125: C | P125: A | Q125: A | R125: B | S125: B | T125: A
E126: 0 | F126: =+E126+1 -> 1 | G126: =+F126+1 -> 2 | H126: 3 | I126: 4 | J126: 5 | K126: 6 | L126: 7 | M126: 8 | N126: 9 | O126: 10 | P126: 11 | Q126: 12 | R126: 13 | S126: 14 | T126: 15
E127: =+E118 -> 2 | F127: 6 | G127: 8 | H127: 9 | I127: 11 | J127: 12 | K127: 15 | L127: 0 | M127: 3 | N127: 5 | O127: 13 | P127: 14 | Q127: 1 | R127: 4 | S127: 7 | T127: 10
E129: B | F129: C | G129: A | H129: B | I129: C | J129: B | K129: A | L129: C | M129: A | N129: A | O129: C | P129: A | Q129: A | R129: B | S129: B | T129: A
C130: A | D130: -1 | E130: -1 | F130: -1 | G130: 2 | H130: 2 | I130: 2 | J130: 3 | K130: 6 | L130: 6 | M130: 8 | N130: 9 | O130: 9 | P130: 11 | Q130: 12 | R130: 12 | S130: 13 | T130: 15
C131: B | D131: -1 | E131: 0 | F131: 0 | G131: 0 | H131: 3 | I131: 3 | J131: 5 | K131: 5 | L131: 5 | M131: 6 | N131: 7 | O131: 8 | P131: 9 | Q131: 10 | R131: 13 | S131: 14 | T131: 14
C132: C | D132: -1 | E132: 0 | F132: 1 | G132: 1 | H132: 1 | I132: 4 | J132: 4 | K132: 4 | L132: 7 | M132: 7 | N132: 8 | O132: 10 | P132: 10 | Q132: 11 | R132: 11 | S132: 12 | T132: 13
E133: A | L133: B | Q133: C
E134: 2 | F134: 2 | G134: 1 | H134: 0 | I134: 1 | J134: 0 | K134: 1 | L134: 0 | M134: 2 | N134: 1 | O134: 2 | P134: 0 | Q134: 1 | R134: 2 | S134: 2 | T134: 1 | U134: =SUM(E134:T134) -> 18
D137: A | E137: B | F137: C | G137: A | H137: B | I137: C | J137: B | K137: A | L137: C | M137: A | N137: A | O137: C | P137: A | Q137: A | R137: B | S137: B | T137: A
D138: B | E138: A | F138: B | G138: C | H138: A | I138: B | J138: C | K138: B | L138: A | M138: C | N138: C | O138: A | P138: C | Q138: C | R138: A | S138: A | T138: B
D139: C | E139: C | F139: A | G139: B | H139: C | I139: A | J139: A | K139: C | L139: B | M139: B | N139: B | O139: B | P139: B | Q139: B | R139: C | S139: C | T139: C
E142: 0 | F142: 0 | G142: 2 | H142: 2 | I142: 2 | J142: 1 | K142: 2 | L142: 2 | M142: 1 | N142: 0 | O142: 1 | P142: 1 | Q142: 0 | R142: 2 | S142: 0 | T142: 1 | U142: =SUM(E142:T142) -> 17
D145: TNUM | E145: 2 | F145: 6 | G145: 8 | H145: 9 | I145: 11 | J145: 12 | K145: 15 | L145: 0 | M145: 3 | N145: 5 | O145: 13 | P145: 14 | Q145: 1 | R145: 4 | S145: 7 | T145: 10
E146: 0 | F146: =+E146+1 -> 1 | G146: =+F146+1 -> 2 | H146: 3 | I146: 4 | J146: 5 | K146: 6 | L146: 7 | M146: 8 | N146: 9 | O146: 10 | P146: 11 | Q146: 12 | R146: 13 | S146: 14 | T146: 15
E147: =E152 -> B | F147: C | G147: A | H147: B | I147: C | J147: B | K147: A | L147: C | M147: A | N147: A | O147: C | P147: A | Q147: A | R147: B | S147: B | T147: A
E150: 13 | F150: 4 | G150: 14 | H150: 0 | I150: 9 | J150: 2 | K150: 5 | L150: 12 | M150: 15 | N150: 1 | O150: 7 | P150: 10 | Q150: 3 | R150: 8 | S150: 11 | T150: 6
E151: =+E150-1 -> 12 | F151: =+F150-1 -> 3 | G151: =+G150-1 -> 13 | H151: 15 | I151: =+I150-1 -> 8 | J151: 1 | K151: 4 | L151: 11 | M151: 14 | N151: 0 | O151: 6 | P151: 9 | Q151: 2 | R151: 7 | S151: 10 | T151: 5
D152: BWT | E152: B | F152: C | G152: A | H152: B | I152: C | J152: B | K152: A | L152: C | M152: A | N152: A | O152: C | P152: A | Q152: A | R152: B | S152: B | T152: A
E153: 0 | F153: =+E153+1 -> 1 | G153: =+F153+1 -> 2 | H153: 3 | I153: 4 | J153: 5 | K153: 6 | L153: 7 | M153: 8 | N153: 9 | O153: 10 | P153: 11 | Q153: 12 | R153: 13 | S153: 14 | T153: 15
E154: =+E145 -> 2 | F154: 6 | G154: 8 | H154: 9 | I154: 11 | J154: 12 | K154: 15 | L154: 0 | M154: 3 | N154: 5 | O154: 13 | P154: 14 | Q154: 1 | R154: 4 | S154: 7 | T154: 10
E156: B | F156: C | G156: A | H156: B | I156: C | J156: B | K156: A | L156: C | M156: A | N156: A | O156: C | P156: A | Q156: A | R156: B | S156: B | T156: A
D157: -1 | E157: -1 | F157: -1 | G157: 2 | H157: 2 | I157: 2 | J157: 2 | K157: 6 | L157: 6 | M157: 8 | N157: 9 | O157: 9 | P157: 11 | Q157: 12 | R157: 12 | S157: 12 | T157: 15
D158: -1 | E158: 0 | F158: 0 | G158: 1 | H158: 3 | I158: 3 | J158: 5 | K158: 6 | L158: 6 | M158: 7 | N158: 8 | O158: 8 | P158: 9 | Q158: 10 | R158: 13 | S158: 14 | T158: 15
D159: -1 | E159: 0 | F159: 1 | G159: 2 | H159: 3 | I159: 4 | J159: 5 | K159: 6 | L159: 7 | M159: 8 | N159: 9 | O159: 10 | P159: 11 | Q159: 12 | R159: 13 | S159: 14 | T159: 15
E161: 2 | F161: 3 | G161: 1 | H161: 0 | I161: 1 | J161: 0 | K161: 2 | L161: 0 | M161: 1 | N161: 1 | O161: 2 | P161: 0 | Q161: 0 | R161: 0 | S161: 0 | T161: 0 | U161: =SUM(E161:T161) -> 13
E163: 0 | F163: 0 | G163: 2 | H163: 1 | I163: 0 | J163: 1 | K163: 3 | L163: 0 | M163: 1 | N163: 0 | O163: 0 | P163: 1 | Q163: 0 | R163: 2 | S163: 0 | T163: 2
E165: 2 | F165: 3 | G165: 1 | H165: 0 | I165: 1 | J165: 0 | K165: 2 | L165: 0 | M165: 2 | N165: 1 | O165: 7 | P165: 0 | Q165: 1 | R165: 2 | S165: 2 | T165: 2
E167: A | L167: B | Q167: C
E168: 1 | F168: 1 | G168: =+G161 -> 1 | H168: 0 | I168: 1 | J168: 0 | K168: 1 | L168: 0 | M168: 1 | N168: 1 | O168: 1 | P168: 0 | Q168: 0 | R168: 0 | S168: 0 | T168: 0
E173: 0 | F173: =+E173+1 -> 1 | G173: =+F173+1 -> 2 | H173: 3 | I173: 4 | J173: 5 | K173: 6 | L173: 7 | M173: 8 | N173: 9 | O173: 10 | P173: 11 | Q173: 12 | R173: 13 | S173: 14 | T173: 15
E174: A | F174: B | G174: A | H174: C | I174: A | J174: A | K174: C | L174: B | M174: C | N174: A | O174: B | P174: C | Q174: B | R174: A | S174: A | T174: B
E177: A | F177: A | G177: A | H177: A | I177: A | J177: A | K177: A | L177: B | M177: B | N177: B | O177: B | P177: B | Q177: C | R177: C | S177: C | T177: C
E178: 13 | F178: 4 | G178: 14 | H178: 0 | I178: 9 | J178: 2 | K178: 5 | L178: 12 | M178: 15 | N178: 1 | O178: 7 | P178: 10 | Q178: 3 | R178: 8 | S178: 11 | T178: 6
E182: B | F182: C | G182: A | H182: B | I182: C | J182: B | K182: A | L182: C | M182: A | N182: A | O182: C | P182: A | Q182: A | R182: B | S182: B | T182: A
E183: A | L183: B | Q183: C
E184: 2 | F184: 2 | G184: 1 | H184: 0 | I184: 1 | J184: 0 | K184: 1 | L184: 0 | M184: 2 | N184: 1 | O184: 2 | P184: 0 | Q184: 1 | R184: 2 | S184: 2 | T184: 1 | U184: =SUM(E184:T184) -> 18
C187: 0 | D187: B | E187: B | F187: C | G187: A | H187: B | I187: C | J187: B | K187: A | L187: C | M187: A | N187: A | O187: C | P187: A | Q187: A | R187: B | S187: B | T187: A
C188: 1 | D188: C | E188: C | F188: B | G188: C | H188: A | I188: B | J188: C | K188: B | L188: A | M188: C | N188: C | O188: A | P188: C | Q188: C | R188: A | S188: A | T188: B
C189: 2 | D189: A | E189: A | F189: A | G189: B | H189: C | I189: A | J189: A | K189: C | L189: B | M189: B | N189: B | O189: B | P189: B | Q189: B | R189: C | S189: C | T189: C
D194: 13 | E194: 4 | F194: 14 | G194: 0 | H194: 9 | I194: 2 | J194: 5 | K194: 12 | L194: 15 | M194: 1 | N194: 7 | O194: 10 | P194: 3 | Q194: 8 | R194: 11 | S194: 6
D196: 0 | E196: =+D196+1 -> 1 | F196: =+E196+1 -> 2 | G196: 3 | H196: 4 | I196: 5 | J196: 6 | K196: 7 | L196: 8 | M196: 9 | N196: 10 | O196: 11 | P196: 12 | Q196: 13 | R196: 14 | S196: 15
D197: A | E197: B | F197: A | G197: C | H197: A | I197: A | J197: C | K197: B | L197: C | M197: A | N197: B | O197: C | P197: B | Q197: A | R197: A | S197: B
C198: 0 | D198: 0 | E198: 2 | F198: 4 | G198: 5 | H198: 9 | I198: 13 | J198: 14 | K198: 1 | L198: 7 | M198: 10 | N198: 12 | O198: 15 | P198: 3 | Q198: 6 | R198: 8 | S198: 11
D199: A | E199: A | F199: A | G199: A | H199: A | I199: A | J199: A | K199: B | L199: B | M199: B | N199: B | O199: B | P199: C | Q199: C | R199: C | S199: C
C200: 1 | D200: 4 | E200: 13 | F200: 0 | G200: 9 | H200: 14 | I200: 2 | J200: 5 | K200: 1 | L200: 12 | M200: 15 | N200: 7 | O200: 10 | P200: 3 | Q200: 8 | R200: 6 | S200: 11
D201: A | E201: A | F201: B | G201: B | H201: B | I201: C | J201: C | K201: A | L201: A | M201: A | N201: C | O201: C | P201: A | Q201: A | R201: B | S201: B
C202: 2 | D202: 13 | E202: 4 | F202: 0 | G202: 14 | H202: 9 | I202: 2 | J202: 5 | K202: 12 | L202: 15 | M202: 1 | N202: 7 | O202: 10 | P202: 3 | Q202: 8 | R202: 11 | S202: 6
D203: B | E203: C | F203: A | G203: A | H203: C | I203: A | J203: B | K203: A | L203: B | M203: C | N203: A | O203: B | P203: A | Q203: B | R203: A | S203: C
C204: 3 | D204: 13 | E204: 4 | F204: 14 | G204: 0 | H204: 9 | I204: 2 | J204: 5 | K204: 12 | L204: 15 | M204: 1 | N204: 7 | O204: 10 | P204: 3 | Q204: 8 | R204: 11 | S204: 6
D205: A | E205: B | F205: B | G205: C | H205: B | I205: A | J205: C | K205: B | L205: A | M205: A | N205: B | O205: A | P205: C | Q205: C | R205: A | S205: A
C208: 0 | D208: 15 | E208: =+E198-1 -> 1 | F208: 3 | G208: 4 | H208: 8 | I208: 12 | J208: 13 | K208: 0 | L208: 6 | M208: 9 | N208: 11 | O208: 14 | P208: 2 | Q208: 5 | R208: 7 | S208: 10
D209: B | E209: B | F209: C | G209: A | H209: C | I209: B | J209: A | K209: A | L209: C | M209: A | N209: C | O209: A | P209: A | Q209: A | R209: B | S209: B
D210: A | E210: A | F210: B | G210: B | H210: B | I210: C | J210: C | K210: A | L210: A | M210: A | N210: C | O210: C | P210: A | Q210: A | R210: B | S210: B
D211: A | E211: A | F211: A | G211: A | H211: A | I211: A | J211: A | K211: B | L211: B | M211: B | N211: B | O211: B | P211: C | Q211: C | R211: C | S211: C
C212: 1 | D212: A | E212: A | F212: B | G212: B | H212: B | I212: C | J212: C | K212: A | L212: A | M212: A | N212: C | O212: C | P212: A | Q212: A | R212: B | S212: B
C215: 1 | D215: =+D200-1 -> 3 | E215: =+E200-1 -> 12 | F215: 15 | G215: 8 | H215: 13 | I215: 1 | J215: 4 | K215: 0 | L215: 11 | M215: 14 | N215: 6 | O215: 9 | P215: 2 | Q215: 7 | R215: 5 | S215: 10
D216: C | E216: B | F216: B | G216: C | H216: A | I216: B | J216: A | K216: A | L216: C | M216: A | N216: C | O216: A | P216: A | Q216: B | R216: A | S216: B
D217: B | E217: C | F217: A | G217: B | H217: C | I217: A | J217: B | K217: A | L217: A | M217: C | N217: A | O217: C | P217: A | Q217: B | R217: A | S217: B
D218: A | E218: A | F218: A | G218: A | H218: A | I218: A | J218: A | K218: B | L218: B | M218: B | N218: B | O218: B | P218: C | Q218: C | R218: C | S218: C
D219: A | E219: A | F219: B | G219: B | H219: B | I219: C | J219: C | K219: A | L219: A | M219: A | N219: C | O219: C | P219: A | Q219: A | R219: B | S219: B
C220: 2 | D220: B | E220: C | F220: A | G220: A | H220: C | I220: A | J220: B | K220: A | L220: B | M220: C | N220: A | O220: B | P220: A | Q220: B | R220: A | S220: C
C223: 2 | D223: =+D202-1 -> 12 | E223: =+E202-1 -> 3 | F223: 15 | G223: =+G202-1 -> 13 | H223: 8 | I223: 1 | J223: 4 | K223: 11 | L223: 14 | M223: 0 | N223: 6 | O223: 9 | P223: 2 | Q223: 7 | R223: 10 | S223: 5
D224: B | E224: C | F224: B | G224: A | H224: C | I224: B | J224: A | K224: C | L224: A | M224: A | N224: C | O224: A | P224: A | Q224: B | R224: B | S224: A
D225: B | E225: C | F225: A | G225: B | H225: C | I225: B | J225: A | K225: C | L225: A | M225: A | N225: C | O225: A | P225: A | Q225: B | R225: B | S225: A
D226: A | E226: A | F226: A | G226: A | H226: A | I226: A | J226: A | K226: B | L226: B | M226: B | N226: B | O226: B | P226: C | Q226: C | R226: C | S226: C
D227: A | E227: A | F227: B | G227: B | H227: B | I227: C | J227: C | K227: A | L227: A | M227: A | N227: C | O227: C | P227: A | Q227: A | R227: B | S227: B
D228: B | E228: C | F228: A | G228: A | H228: C | I228: A | J228: B | K228: A | L228: B | M228: C | N228: A | O228: B | P228: A | Q228: B | R228: A | S228: C
C229: 3 | D229: A | E229: B | F229: B | G229: C | H229: B | I229: A | J229: C | K229: B | L229: A | M229: A | N229: B | O229: A | P229: C | Q229: C | R229: A | S229: A
D233: 0 | E233: =+D233+1 -> 1 | F233: =+E233+1 -> 2 | G233: 3 | H233: 4 | I233: 5 | J233: 6 | K233: 7 | L233: 8 | M233: 9 | N233: 10 | O233: 11 | P233: 12 | Q233: 13 | R233: 14 | S233: 15
D234: =+D197 -> A | E234: =+E197 -> B | F234: A | G234: C | H234: A | I234: A | J234: C | K234: B | L234: C | M234: A | N234: B | O234: C | P234: B | Q234: A | R234: A | S234: B
C236: =+C208 -> 0 | D236: =+D208 -> 15 | E236: 1 | F236: 3 | G236: 4 | H236: 8 | I236: 12 | J236: 13 | K236: 0 | L236: 6 | M236: 9 | N236: 11 | O236: 14 | P236: 2 | Q236: 5 | R236: =+R208 -> 7 | S236: 10
D237: =+D209 -> B | E237: B | F237: C | G237: A | H237: C | I237: B | J237: A | K237: A | L237: C | M237: A | N237: C | O237: A | P237: A | Q237: A | R237: B | S237: B
D238: =+D210 -> A | E238: A | F238: B | G238: B | H238: B | I238: C | J238: C | K238: A | L238: A | M238: A | N238: C | O238: C | P238: A | Q238: A | R238: B | S238: B
D239: =+D211 -> A | E239: A | F239: A | G239: A | H239: A | I239: A | J239: A | K239: B | L239: B | M239: B | N239: B | O239: B | P239: C | Q239: C | R239: C | S239: C
C240: =+C212 -> 1 | D240: =+D212 -> A | E240: A | F240: B | G240: B | H240: B | I240: C | J240: C | K240: A | L240: A | M240: A | N240: C | O240: C | P240: A | Q240: A | R240: B | S240: B
D241: C | E241: B | F241: A | G241: C | H241: A | I241: A | J241: B | K241: C | L241: A | M241: B | N241: A | O241: B | P241: A | Q241: B | R241: C | S241: A
D242: 6 | E242: 15 | F242: 2 | G242: 11 | H242: 0 | I242: 4 | J242: 7 | K242: 3 | L242: 14 | M242: 1 | N242: 9 | O242: 12 | P242: 5 | Q242: 10 | R242: 8 | S242: 13
D245: =+D4 -> A | E245: =+E4 -> B | F245: A | G245: C | H245: A | I245: A | J245: C | K245: B | L245: C | M245: A | N245: B | O245: C | P245: B | Q245: A | R245: A | S245: B
D247: =+D17 -> B | E247: =+E17 -> C | F247: A | G247: B | H247: C | I247: B | J247: A | K247: C | L247: A | M247: A | N247: C | O247: A | P247: A | Q247: B | R247: B | S247: A
D248: =+D6 -> A | E248: =+E6 -> A | F248: A | G248: A | H248: A | I248: A | J248: A | K248: B | L248: B | M248: B | N248: B | O248: B | P248: C | Q248: C | R248: C | S248: C
D249: =+D19 -> 2 | E249: =+E19 -> 6 | F249: 8 | G249: 9 | H249: 11 | I249: 12 | J249: 15 | K249: 0 | L249: 3 | M249: 5 | N249: 13 | O249: 14 | P249: 1 | Q249: 4 | R249: 7 | S249: 10
D250: 2 | E250: 3 | F250: 1 | G250: 0 | H250: 1 | I250: 0 | J250: 2 | K250: 0 | L250: 1 | M250: 1 | N250: 2 | O250: 0 | T250: =SUM(D250:S250) -> 13
D252: =+D247 -> B | E252: =+E247 -> C | F252: A | G252: B | H252: C | I252: B | J252: A | K252: C | L252: A | M252: A | N252: C | O252: A | P252: A | Q252: B | R252: B | S252: A
D253: 0 | E253: =+D253+1 -> 1 | F253: =+E253+1 -> 2 | G253: 3 | H253: 4 | I253: 5 | J253: 6 | K253: 7 | L253: 8 | M253: 9 | N253: 10 | O253: 11 | P253: 12 | Q253: 13 | R253: 14 | S253: 15
D254: =+D249 -> 2 | E254: =+E249 -> 6 | F254: 8 | G254: 9 | H254: 11 | I254: 12 | J254: 15 | K254: 0 | L254: 3 | M254: 5 | N254: 13 | O254: 14 | P254: 1 | Q254: 4 | R254: 7 | S254: 10
D256: 2 | K256: 0 | P256: 1
D257: 2 | L257: 3 | P257: 1 | T257: 0
D258: 2 | L258: 3 | Q258: 4 | T258: 0
E259: 6 | L259: 3 | Q259: 4 | T259: 1
E260: 6 | M260: 5 | Q260: 4 | T260: 0
E261: 6 | M261: 5 | R261: 7 | T261: 0
E262: 6 | N262: 13 | R262: 7 | T262: 5
F263: 8 | N263: 13 | R263: 7 | T263: 0
F264: 8 | N264: 13 | S264: 10 | T264: 1
G265: 9 | N265: 13 | S265: 10
H266: 11 | N266: 13 | S266: 10
I267: 12 | N267: 13 | S267: 10
J268: 15 | N268: 13 | S268: 10 | T268: 1
J269: 15 | O269: 14 | S269: 10
T270: =SUM(T257:T269) -> 8
D273: =+D17 -> B | E273: =+E17 -> C | F273: A | G273: B | H273: C | I273: B | J273: A | K273: C | L273: A | M273: A | N273: C | O273: A | P273: A | Q273: B | R273: B | S273: A
D274: =+D18 -> 0 | E274: 1 | F274: 2 | G274: 3 | H274: 4 | I274: 5 | J274: 6 | K274: 7 | L274: 8 | M274: 9 | N274: 10 | O274: 11 | P274: 12 | Q274: 13 | R274: 14 | S274: 15
D275: =+D19 -> 2 | E275: 6 | F275: 8 | G275: 9 | H275: 11 | I275: 12 | J275: 15 | K275: 0 | L275: 3 | M275: 5 | N275: 13 | O275: 14 | P275: 1 | Q275: 4 | R275: 7 | S275: 10
D279: B | E279: B | F279: A | G279: B | H279: B | I279: B | J279: A | K279: B | L279: A | M279: A | N279: B | O279: A | P279: A | Q279: B | R279: B | S279: A
D280: =+D274 -> 0 | E280: =+E274 -> 1 | F280: 2 | G280: 3 | H280: 4 | I280: 5 | J280: 6 | K280: 7 | L280: 8 | M280: 9 | N280: 10 | O280: 11 | P280: 12 | Q280: 13 | R280: 14 | S280: 15
D281: 2 | E281: 6 | F281: 8 | G281: 9 | H281: 11 | I281: 12 | J281: 15 | K281: 0 | L281: 3 | M281: 4 | N281: 5 | O281: 1 | P281: 7 | Q281: 10 | R281: 13 | S281: 14
D284: B | E284: A | F284: A | G284: B
... 15 more rows

Sheet Лист2
C3: 0 | D3: =+C3+1 -> 1 | E3: =+D3+1 -> 2 | F3: 3 | G3: 4 | H3: 5 | I3: 6 | J3: 7 | K3: 8 | L3: 9 | M3: 10 | N3: 11 | O3: 12 | P3: 13 | Q3: 14 | R3: 15
C4: A | D4: B | E4: A | F4: C | G4: A | H4: A | I4: C | J4: B | K4: C | L4: A | M4: B | N4: C | O4: B | P4: A | Q4: A | R4: B
C5: 0 | D5: 2 | E5: 4 | F5: 5 | G5: 9 | H5: 13 | I5: 14 | J5: 1 | K5: 7 | L5: 10 | M5: 12 | N5: 15 | O5: 3 | P5: 6 | Q5: 8 | R5: 11
B6: 0 | C6: A | D6: A | E6: A | F6: A | G6: A | H6: A | I6: A | J6: B | K6: B | L6: B | M6: B | N6: B | O6: C | P6: C | Q6: C | R6: C
C7: 4 | D7: 13 | E7: 0 | F7: 9 | G7: 14 | H7: 2 | I7: 5 | J7: 1 | K7: 12 | L7: 15 | M7: 7 | N7: 10 | O7: 3 | P7: 8 | Q7: 6 | R7: 11
B8: 1 | C8: A | D8: A | E8: B | F8: B | G8: B | H8: C | I8: C | J8: A | K8: A | L8: A | M8: C | N8: C | O8: A | P8: A | Q8: B | R8: B
C9: 13 | D9: 4 | E9: 0 | F9: 14 | G9: 9 | H9: 2 | I9: 5 | J9: 12 | K9: 15 | L9: 1 | M9: 7 | N9: 10 | O9: 3 | P9: 8 | Q9: 11 | R9: 6
B10: 2 | C10: B | D10: C | E10: A | F10: A | G10: C | H10: A | I10: B | J10: A | K10: B | L10: C | M10: A | N10: B | O10: A | P10: B | Q10: A | R10: C
C11: 13 | D11: 4 | E11: 14 | F11: 0 | G11: 9 | H11: 2 | I11: 5 | J11: 12 | K11: 15 | L11: 1 | M11: 7 | N11: 10 | O11: 3 | P11: 8 | Q11: 11 | R11: 6
B12: 3 | E12: B | F12: C
C15: 13 | D15: 4 | E15: 14 | F15: 0 | G15: 9 | H15: 2 | I15: 5 | J15: 12 | K15: 15 | L15: 1 | M15: 7 | N15: 10 | O15: 3 | P15: 8 | Q15: 11 | R15: 6
C16: =+C15-1 -> 12 | D16: =+D15-1 -> 3 | E16: 13 | F16: 15 | G16: 8 | H16: 1 | I16: 4 | J16: 11 | K16: 14 | L16: 0 | M16: 6 | N16: 9 | O16: 2 | P16: 7 | Q16: 10 | R16: 5
B17: BWT | C17: B | D17: C | E17: A | F17: B | G17: C | H17: B | I17: A | J17: C | K17: A | L17: A | M17: C | N17: A | O17: A | P17: B | Q17: B | R17: A
C18: 0 | D18: =+C18+1 -> 1 | E18: =+D18+1 -> 2 | F18: 3 | G18: 4 | H18: 5 | I18: 6 | J18: 7 | K18: 8 | L18: 9 | M18: 10 | N18: 11 | O18: 12 | P18: 13 | Q18: 14 | R18: 15
B20: MTF | C20: 1 | D20: 2 | E20: 2 | F20: 2 | G20: 2 | H20: 1 | I20: 2 | J20: 2 | K20: 1 | L20: 0 | M20: 1 | N20: 1 | O20: 0 | P20: 2 | Q20: 0 | R20: 1 | S20: =SUM(C20:R20) -> 20
B21: A | C21: B | D21: C | E21: A | F21: B | G21: C | H21: B | I21: A | J21: C | K21: A | L21: A | M21: C | N21: A | O21: A | P21: B | Q21: B | R21: A
B22: B | C22: A | D22: B | E22: C | F22: A | G22: B | H22: C | I22: B | J22: A | K22: C | L22: C | M22: A | N22: C | O22: C | P22: A | Q22: A | R22: B
B23: C | C23: C | D23: A | E23: B | F23: C | G23: A | H23: A | I23: C | J23: B | K23: B | L23: B | M23: B | N23: B | O23: B | P23: C | Q23: C | R23: C
B26: TNUM | C26: 2 | D26: 6 | E26: 8 | F26: 9 | G26: 11 | H26: 12 | I26: 15 | J26: 0 | K26: 3 | L26: 5 | M26: 13 | N26: 14 | O26: 1 | P26: 4 | Q26: 7 | R26: 10
C27: 0 | D27: =+C27+1 -> 1 | E27: =+D27+1 -> 2 | F27: 3 | G27: 4 | H27: 5 | I27: 6 | J27: 7 | K27: 8 | L27: 9 | M27: 10 | N27: 11 | O27: 12 | P27: 13 | Q27: 14 | R27: 15
C28: =C17 -> B | D28: =D17 -> C | E28: A | F28: B | G28: C | H28: B | I28: A | J28: C | K28: A | L28: A | M28: C | N28: A | O28: A | P28: B | Q28: B | R28: A
C33: =+C17 -> B | D33: =+D17 -> C | E33: A | F33: B | G33: C | H33: B | I33: A | J33: C | K33: A | L33: A | M33: C | N33: A | O33: A | P33: B | Q33: B | R33: A
C36: A | J36: B | O36: C
C37: 2 | D37: 3 | E37: 1 | F37: 0 | G37: 1 | H37: 0 | I37: 2 | J37: 0 | K37: 1 | L37: 1 | M37: 2 | N37: 0 | O37: 0 | P37: 0 | Q37: 0 | R37: 0 | S37: =SUM(C37:R37) -> 13
I38: =SUM(C37:I37) -> 9 | N38: =SUM(J37:N37) -> 4
B40: B | C40: 2 | J40: 0 | O40: 0
B41: C | C41: 1 | K41: 1 | O41: 0
B42: A | C42: 0 | K42: 0 | P42: 0
B43: B | D43: 3 | K43: 0 | P43: 0
B44: C | D44: 2 | L44: 1 | P44: 0
B45: B | D45: 1 | L45: 0 | Q45: 0
B46: A | D46: 0 | M46: 2 | Q46: 0
B47: C | E47: 1 | M47: 2 | Q47: 0
B48: A | E48: 0 | M48: 1 | R48: 0
B49: A | F49: 0 | M49: 1 | R49: 0
B50: C | G50: 1 | M50: 1 | R50: 0
B51: A | G51: 0 | M51: 0
B52: A | H52: 0 | M52: 0
B53: B | I53: 2 | M53: 0
B54: B | I54: 1 | N54: 0
B55: A | I55: 0
C60: =+C33 -> B | D60: =+D33 -> C | E60: A | F60: B | G60: C | H60: B | I60: A | J60: C | K60: A | L60: A | M60: C | N60: A | O60: A | P60: B | Q60: B | R60: A
C63: A | J63: B | O63: C
J64: 0 | K64: 1 | L64: 0 | M64: 5 | N64: 0 | O64: 1 | P64: 2 | Q64: 2 | R64: 2 | S64: =SUM(J64:R64) -> 13

Sheet Лист3
C2: 0 | D2: =+C2+1 -> 1 | E2: =+D2+1 -> 2 | F2: 3 | G2: 4 | H2: 5 | I2: 6 | J2: 7 | K2: 8 | L2: 9 | M2: 10 | N2: 11 | O2: 12 | P2: 13
C3: t | D3: o | E3: b | F3: e | G3: o | H3: r | I3: n | J3: o | K3: t | L3: t | M3: o | N3: b | O3: e | P3: $
C4: 13 | D4: 2 | E4: 11 | F4: 3 | G4: 12 | H4: 6 | I4: 1 | J4: 4 | K4: 7 | L4: 10 | M4: 5 | N4: 0 | O4: 8 | P4: 9
C5: $ | D5: b | E5: b | F5: e | G5: e | H5: n | I5: o | J5: o | K5: o | L5: o | M5: r | N5: t | O5: t | P5: t
B7: I[i] | C7: 13 | D7: 2 | E7: 11 | F7: 3 | G7: 12 | H7: 6 | I7: 1 | J7: 4 | K7: 7 | L7: 10 | M7: 5 | N7: 0 | O7: 8 | P7: 9
B8: S[I] | C8: -1 | D8: 2 | F8: 2 | H8: -1 | I8: 4 | M8: -1 | N8: 3
B9: V[I[i]] | C9: 0 | D9: 1 | E9: 1 | F9: 3 | G9: 3 | H9: 5 | I9: 6 | J9: 6 | K9: 6 | L9: 6 | M9: 10 | N9: 11 | O9: 11 | P9: 11
A11: k=1 | B11: I[i]+k | C11: 0 | D11: =+D7+1 -> 3 | E11: 12 | F11: 4 | G11: 13 | H11: 7 | I11: 2 | J11: 5 | K11: 8 | L11: 11 | M11: 6 | N11: 1 | O11: 9 | P11: 10
B12: V[I[i]+k] | D12: 3 | E12: 3 | F12: 6 | G12: 0 | I12: 1 | J12: 10 | K12: 11 | L12: 1 | N12: 6 | O12: 11 | P12: 6
B13: I[i] | C13: 13 | D13: 2 | E13: 11 | F13: 12 | G13: 3 | H13: 6 | I13: 1 | J13: 10 | K13: 4 | L13: 7 | M13: 5 | N13: 0 | O13: 9 | P13: 8
B14: S[I] | D14: 2 | I14: 2 | N14: 2
B15: V[I[i]] | C15: 0 | D15: 1 | E15: 1 | F15: 3 | G15: 4 | H15: 5 | I15: 6 | J15: 6 | K15: 8 | L15: 9 | M15: 10 | N15: 11 | O15: 11 | P15: 13
A17: k=2 | B17: I[i]+k | C17: 1 | D17: =+D13+2 -> 4 | E17: 13 | F17: 0 | G17: 5 | H17: 8 | I17: 3 | J17: 12 | K17: 6 | L17: 9 | M17: 7 | N17: 2 | O17: 11 | P17: 10
B18: V[I[i]+k] | D18: 8 | E18: 0 | I18: 4 | J18: 3 | N18: 1 | O18: 1
B19: I[i] | C19: 13 | D19: 11 | E19: 2 | F19: 12 | G19: 3 | H19: 6 | I19: 10 | J19: 1 | K19: 4 | L19: 7 | M19: 5 | N19: 0 | O19: 9 | P19: 8
B20: S[I]
B21: V[I[i]] | C21: 0 | D21: 1 | E21: 2 | F21: 3 | G21: 4 | H21: 5 | I21: 6 | J21: 7 | K21: 8 | L21: 9 | M21: 10 | N21: 11 | O21: 11 | P21: 13
A23: k=4 | B23: I[i]+k | C23: 3 | D23: 1 | E23: =+E19+4 -> 6 | F23: 2 | G23: 7 | H23: 10 | I23: 0 | J23: 5 | K23: 8 | L23: 11 | M23: 9 | N23: 4 | O23: 13 | P23: 12
B24: V[I[i]+k] | N24: 8 | O24: 0
B25: I[i] | N25: 9 | O25: 0
C28: 0 | D28: =+C28+1 -> 1 | E28: =+D28+1 -> 2 | F28: 3 | G28: 4 | H28: 5 | I28: 6 | J28: 7 | K28: 8 | L28: 9 | M28: 10 | N28: 11 | O28: 12 | P28: 13
C29: t | D29: o | E29: b | F29: e | G29: o | H29: r | I29: n | J29: o | K29: t | L29: t | M29: o | N29: b | O29: e | P29: $
B31: 0 | C31: 13 | D31: 11 | E31: 2 | F31: 12 | G31: 3 | H31: 6 | I31: 10 | J31: 1 | K31: 4 | L31: 7 | M31: 5 | N31: 9 | O31: 0 | P31: 8
C32: $ | D32: b | E32: b | F32: e | G32: e | H32: n | I32: o | J32: o | K32: o | L32: o | M32: r | N32: t | O32: t | P32: t
B34: 1 | C34: 0 | D34: =+D31+1 -> 12 | E34: 3 | F34: 13 | G34: 4 | H34: 7 | I34: 11 | J34: 2 | K34: 5 | L34: 8 | M34: 6 | N34: 10 | O34: 1 | P34: 9
C35: t | D35: e | E35: e | F35: $ | G35: o | H35: o | I35: b | J35: b | K35: r | L35: t | M35: n | N35: o | O35: o | P35: t
B37: 2 | C37: =+C34+1 -> 1 | D37: =+D34+1 -> 13 | E37: 4 | F37: 0 | G37: 5 | H37: 8 | I37: 12 | J37: 3 | K37: 6 | L37: 9 | M37: 7 | N37: 11 | O37: 2 | P37: 10
C38: o | D38: $ | E38: o | F38: t | G38: r | H38: t | I38: e | J38: e | K38: n | L38: t | M38: o | N38: b | O38: b | P38: o
B40: 4 | C40: =+C37+2 -> 3 | D40: 1 | E40: =+E37+2 -> 6 | F40: 2 | G40: 7 | H40: 10 | I40: 0 | J40: 5 | K40: 8 | L40: 11 | M40: 9 | N40: 13 | O40: 4 | P40: 12
C41: e | D41: o | E41: n | F41: b | G41: o | H41: o | I41: t | J41: r | K41: t | L41: b | M41: t | N41: $ | O41: o | P41: e
C44: =+C3 -> t | D44: o | E44: b | F44: e | G44: o | H44: r | I44: n | J44: o | K44: t | L44: t | M44: o | N44: b | O44: e | P44: $
J46: !
B47: BWT | C47: e | D47: o | E47: o | F47: b | G47: b | H47: r | I47: t | J47: t | K47: e | L47: n | M47: o | N47: t | O47: $ | P47: o
C48: =+C32 -> $ | D48: =+D32 -> b | E48: b | F48: e | G48: e | H48: n | I48: o | J48: o | K48: o | L48: o | M48: r | N48: t | O48: t | P48: t
C49: 0 | D49: =+C49+1 -> 1 | E49: =+D49+1 -> 2 | F49: 3 | G49: 4 | H49: 5 | I49: 6 | J49: 7 | K49: 8 | L49: 9 | M49: 10 | N49: 11 | O49: 12 | P49: 13
C50: 12 | D50: 3 | E50: 4 | F50: 0 | G50: 8 | H50: 9 | I50: 1 | J50: 2 | K50: 10 | L50: 13 | M50: 5 | N50: 6 | O50: 7 | P50: 11
C51: =+C49-C50 -> -12 | D51: =+D49-D50 -> -2 | E51: -2 | F51: 3 | G51: -4 | H51: -4 | I51: 5 | J51: 5 | K51: -2 | L51: -4 | M51: 5 | N51: 5 | O51: 5 | P51: 2 | Q51: =SUM(C51:P51) -> 0

Sheet Лист4
C2: 0 | D2: =+C2+1 -> 1 | E2: =+D2+1 -> 2 | F2: 3 | G2: 4 | H2: 5 | I2: 6 | J2: 7 | K2: 8 | L2: 9 | M2: 10 | N2: 11 | O2: 12 | P2: 13
C3: t | D3: o | E3: b | F3: e | G3: o | H3: r | I3: n | J3: o | K3: t | L3: t | M3: o | N3: b | O3: e | P3: $
C4: 13 | D4: 2 | E4: 11 | F4: 3 | G4: 12 | H4: 6 | I4: 1 | J4: 4 | K4: 7 | L4: 10 | M4: 5 | N4: 0 | O4: 8 | P4: 9
C5: $ | D5: b | E5: b | F5: e | G5: e | H5: n | I5: o | J5: o | K5: o | L5: o | M5: r | N5: t | O5: t | P5: t
C9: 13 | D9: 11 | E9: 2 | F9: 12 | G9: 3 | H9: 6 | I9: 10 | J9: 1 | K9: 4 | L9: 7 | M9: 5 | N9: 9 | O9: 0 | P9: 8
C10: =+C9-1 -> 12 | D10: =+D9-1 -> 10 | E10: 1 | F10: 11 | G10: 2 | H10: 5 | I10: 9 | J10: 0 | K10: 3 | L10: 6 | M10: 4 | N10: 8 | O10: 13 | P10: 7
B11: BWT | C11: e | D11: o | E11: o | F11: b | G11: b | H11: r | I11: t | J11: t | K11: e | L11: n | M11: o | N11: t | O11: $ | P11: o
C16: 0 | D16: =+C16+1 -> 1 | E16: =+D16+1 -> 2 | F16: 3 | G16: 4 | H16: 5 | I16: 6 | J16: 7 | K16: 8 | L16: 9 | M16: 10 | N16: 11 | O16: 12 | P16: 13
C17: =+C11 -> e | D17: =+D11 -> o | E17: o | F17: b | G17: b | H17: r | I17: t | J17: t | K17: e | L17: n | M17: o | N17: t | O17: $ | P17: o
C18: 12 | D18: 3 | E18: 4 | F18: 0 | G18: 8 | H18: 9 | I18: 1 | J18: 2 | K18: 10 | L18: 13 | M18: 5 | N18: 6 | O18: 7 | P18: 11
C20: 1 | D20: 2 | E20: 2 | F20: 16 | G20: 16 | H20: 1 | I20: 1 | J20: 1 | K20: 1 | L20: 15 | M20: 15 | N20: 1 | O20: 15 | P20: 0
C24: =+C11 -> e | D24: =+D11 -> o | E24: o | F24: b | G24: b | H24: r | I24: t | J24: t | K24: e | L24: n | M24: o | N24: t | O24: $ | P24: o
C25: $ | D25: b | E25: b | F25: e | G25: e | H25: n | I25: o | J25: o | K25: o | L25: o | M25: r | N25: t | O25: t | P25: t
C26: 0 | D26: =+C26+1 -> 1 | E26: =+D26+1 -> 2 | F26: 3 | G26: 4 | H26: 5 | I26: 6 | J26: 7 | K26: 8 | L26: 9 | M26: 10 | N26: 11 | O26: 12 | P26: 13
C27: 12 | D27: 3 | E27: 4 | F27: 0 | G27: 8 | H27: 9 | I27: 1 | J27: 2 | K27: 10 | L27: 13 | M27: 5 | N27: 6 | O27: 7 | P27: 11
C30: 12 | D30: 3 | F30: 0 | H30: 9 | I30: 1 | M30: 5 | N30: 6
B31: 0 | C31: 12 | D31: 3 | F31: 0 | G31: 8 | H31: 9 | I31: 1 | M31: 5 | N31: 6 | Q31: 3 | S31: 2 | T31: 4 | U31: 7
B32: 1 | C32: 12 | D32: 3 | G32: 8 | H32: 9 | J32: 2 | M32: 5 | N32: 6
B33: 2 | C33: 12 | D33: 3 | G33: 8 | H33: 9 | K33: 10 | M33: 5 | N33: 6 | Q33: 2 | S33: 4 | T33: 7
B34: 3 | C34: 12 | E34: 4 | G34: 8 | H34: 9 | K34: 10 | M34: 5 | N34: 6
B35: 4 | C35: 12 | E35: 4 | G35: 8 | H35: 9 | K35: 10 | M35: 5 | N35: 6
B36: 5 | C36: 12 | G36: 8 | H36: 9 | M36: 5 | N36: 6
B37: 6 | C37: 12 | G37: 8 | H37: 9 | K37: 10 | N37: 6 | O37: 7
B38: 7 | C38: 12 | G38: 8 | H38: 9 | K38: 10 | O38: 7 | P38: 11 | Q38: 0
B39: 8 | C39: 12 | G39: 8 | H39: 9 | K39: 10
B40: 9 | C40: 12 | H40: 9 | K40: 10 | P40: 11
B41: 10 | C41: 12 | K41: 10 | L41: 13 | P41: 11 | Q41: 0
B42: 11 | C42: 12 | L42: 13 | P42: 11
B43: 12 | C43: 12 | L43: 13
B44: 13 | L44: 13
C47: e | D47: o | E47: . | F47: b | G47: . | H47: r | I47: t | J47: . | K47: . | L47: n | M47: . | N47: . | O47: $ | P47: .
C48: e | D48: o | E48: . | F48: b | G48: . | H48: r | I48: t | J48: . | K48: e | L48: n | M48: . | N48: . | O48: $ | P48: . | Q48: 3
D49: o | E49: o | F49: b | G49: . | H49: r | I49: t | J49: . | K49: e | L49: n | M49: . | N49: . | O49: $ | P49: .
E50: o | F50: b | G50: . | H50: r | I50: t | J50: . | K50: e | L50: n | M50: o | N50: . | O50: $ | P50: . | Q50: 2
F51: b | G51: b | H51: r | I51: t | J51: . | K51: e | L51: n | M51: o | N51: . | O51: $ | P51: .
G52: b | H52: r | I52: t | J52: . | K52: e | L52: n | M52: o | N52: . | O52: $ | P52: .
H53: r | I53: t | J53: . | K53: e | L53: n | M53: o | N53: . | O53: $ | P53: .
I54: t | J54: t | K54: e | L54: n | M54: o | N54: . | O54: $ | P54: .
J55: t | K55: e | L55: n | M55: o | N55: t | O55: $ | P55: . | Q55: 0
K56: e | L56: n | M56: o | N56: t | O56: $ | P56: .
L57: n | M57: o | N57: t | O57: $ | P57: .
M58: o | N58: t | O58: $ | P58: o | Q58: 0
N59: t | O59: $ | P59: o
O60: $ | P60: o
P61: o

Sheet Лист6
J2: FIN | L2: DC | N2: PPMD
A3: 1 | B3: bib.txt | C3: 111261 | D3: 27249 | E3: 27206 | G3: 27112 | H3: 27170 | J3: 27253 | L3: 26874 | N3: 24532 | O3: =+N3*8/C3 -> 1.763924466
A4: =+A3+1 -> 2 | B4: book1.txt | C4: 768771 | D4: 222916 | E4: 222992 | G4: 224688 | H4: 223307 | J4: 223686 | L4: 215357 | N4: 211815 | O4: =+N4*8/C4 -> 2.204193446
A5: =+A4+1 -> 3 | B5: book2.txt | C5: 610856 | D5: 152526 | E5: 152841 | G5: 152329 | H5: 152750 | J5: 152615 | L5: 148053 | N5: 144051 | O5: =+N5*8/C5 -> 1.886546093
A6: 4 | B6: geo.txt | C6: 102400 | D6: 54820 | E6: 56408 | G6: 56204 | H6: 55884 | J6: 55675 | L6: 57774 | N6: 55976 | O6: 4.373125
A7: 5 | B7: news.txt | C7: 377109 | D7: 115810 | E7: 116022 | G7: 116192 | H7: 115386 | J7: 115944 | L7: 113021 | N7: 106533 | O7: 2.259993795
A8: 6 | B8: obj1.txt | C8: 21504 | D8: 10344 | E8: 10417 | G8: 10500 | H8: 10413 | J8: 10441 | L8: 10672 | N8: 9556 | O8: 3.555059524
A9: 7 | B9: obj2.txt | C9: 246814 | D9: 75157 | E9: 75304 | G9: 74518 | H9: 74237 | J9: 74992 | L9: 75636 | N9: 71046 | O9: 2.302819127
A10: 8 | B10: paper1.txt | C10: 53161 | D10: 16392 | E10: 16427 | G10: 16342 | H10: 16238 | J10: 16402 | L10: 15997 | N10: 14835 | O10: 2.232463648
A11: 9 | B11: paper2.txt | C11: 82199 | D11: 24672 | E11: 24770 | G11: 24734 | H11: 24591 | J11: 24761 | L11: 24081 | N11: 22635 | O11: 2.202946508
A12: 10 | B12: paper3.txt | C12: 46526 | D12: 15653 | E12: 15683 | G12: 15731 | H12: 15614 | J12: 15705 | L12: 15328 | N12: 14342 | O12: 2.466061987
A13: 11 | B13: paper4.txt | C13: 13286 | D13: 5106 | E13: 5134 | G13: 5157 | H13: 5098 | J13: 5162 | L13: 5107 | N13: 4624 | O13: 2.784284209
A14: 12 | B14: paper5.txt | C14: 11954 | D14: 4722 | E14: 4765 | G14: 4794 | H14: 4746 | J14: 4781 | L14: 4779 | N14: 4304 | O14: 2.88037477
A15: 13 | B15: paper6.txt | C15: 38105 | D15: 12203 | E15: 12250 | G15: 12198 | H15: 12111 | J15: 12236 | L15: 12016 | N15: 10997 | O15: 2.308778376
A16: 14 | B16: pic.txt | C16: 513216 | D16: 46084 | E16: 46394 | G16: 46385 | H16: 46842 | J16: 46509 | L16: 46012 | N16: 49355 | O16: 0.7693446814
A17: 15 | B17: proc.txt | C17: 39611 | D17: 12410 | E17: 12428 | G17: 12413 | H17: 12331 | J17: 12434 | L17: 12248 | N17: 11222 | O17: 2.26644114
A18: 16 | B18: prol.txt | C18: 71646 | D18: 15319 | E18: 15365 | G18: 15313 | H18: 15345 | J18: 15347 | L18: 15164 | N18: 14225 | O18: 1.588365017
A19: =+A18+1 -> 17 | B19: prop.txt | C19: 49379 | D19: 10595 | E19: 10662 | G19: 10617 | H19: 10623 | J19: 10610 | L19: 10529 | N19: 9968 | O19: 1.614937524
A20: 18 | B20: trans.txt | C20: 93695 | D20: 17515 | E20: 17474 | G20: 17432 | H20: 17492 | J20: 17497 | L20: 17268 | N20: 16077 | O20: 1.372709323
C21: =SUM(C3:C20) -> 3251493 | D21: =SUM(D3:D20) -> 839493 | E21: =SUM(E3:E20) -> 842542 | G21: =SUM(G3:G20) -> 842659 | H21: =SUM(H3:H20) -> 840178 | J21: =SUM(J3:J20) -> 842050 | K21: =+G21*8/C21 -> 2.073285103 | L21: =SUM(L3:L20) -> 825916 | N21: =SUM(N3:N20) -> 796093 | O21: =SUM(O3:O20)/18 -> 2.268464924
R24: 4886 | S24: 61576 | T24: 16388 | U24: 4516
A25: 1 | B25: alice29.txt | J25: 42269 | N25: 40427 | O25: 42769 | R25: 4768 | S25: 60460 | T25: 16136 | U25: 4464
A26: =+A25+1 -> 2 | B26: asyoulik.txt | J26: 39068 | N26: 36982 | O26: 39257 | R26: =(+R24-R25)/R25*100 -> 2.474832215 | S26: =(+S24-S25)/S25*100 -> 1.845848495 | T26: =(+T24-T25)/T25*100 -> 1.561725335 | U26: =(+U24-U25)/U25*100 -> 1.164874552
A27: 3 | B27: cp.html | J27: 7555 | N27: 6838 | O27: 7516
A28: 4 | B28: fields.c | J28: 3009 | N28: 2770 | O28: 2975
A29: 5 | B29: grammar.lsp | J29: 1248 | N29: 1104 | O29: 1201
A30: 6 | B30: kennedy.xls | C30: 1029744 | J30: 22821 | N30: 36982 | O30: 158137
A31: 7 | B31: lcet10.txt | J31: 104426 | N31: 101852 | O31: 105452
A32: 8 | B32: plrabn12.txt | J32: 141742 | N32: 135412 | O32: 142789
A33: 9 | B33: ptt5 | J33: 46509 | N33: 30927 | O33: 47886
A34: 10 | B34: sum | J34: 12489 | N34: 12268 | O34: 12366
A35: 11 | B35: xargs.1 | J35: 1722 | N35: 1546 | O35: 1684
J36: =SUM(J25:J35) -> 422858 | N36: =SUM(N25:N35) -> 407108 | O36: =SUM(O25:O35) -> 562032
E40: ERI | M40: ARHANGEL
A41: 1 | B41: clegg.tif | C41: 2149096 | D41: 420759 | E41: 355383 | M41: 386704
A42: 2 | B42: frymire.tif | C42: 3706306 | D42: 399092 | E42: 175993 | M42: 185721
A43: 3 | B43: lena.tif | C43: 786568 | D43: 517070 | E43: 441916 | M43: 437483
A44: 4 | B44: monarh.tif | C44: 1179784 | D44: 648928 | E44: 451677 | M44: 461650
A45: 5 | B45: peppers.tif | C45: 786568 | D45: 440942 | E45: 333001 | M45: 336990
A46: 6 | B46: sail.tif | C46: 1179784 | D46: 833310 | E46: 545462 | M46: 565217
A47: 7 | B47: serrano.tif | C47: 1498414 | D47: 179969 | E47: 80872 | M47: 86863
A48: 8 | B48: tulips.tif | C48: 1179784 | D48: 734526 | E48: 509965 | M48: 524723
D49: =SUM(D41:D48) -> 4174596 | E49: =SUM(E41:E48) -> 2894269 | M49: =SUM(M41:M48) -> 2985351
D54: 0 | E54: =37017-5995 -> 31022 | K54: =+E54/(E54+E55) -> 0.8380473836 | M54: =-K54*LOG(K54,2)-K55*LOG(K55,2) -> 0.6389604363
D55: 1 | E55: 5995 | K55: =+E55/(E54+E55) -> 0.1619526164
E56: =+E54+E55 -> 37017 | M56: =+E56*M54/8 -> 2956.549809

Sheet Лист7
C4: S | D4: C | E4: P | F4: P | G4: P | H4: A | I4: C | J4: A | K4: A | L4: S | M4: P | N4: A | O4: C | P4: C | Q4: S | R4: P | S4: C | T4: P | U4: C | V4: A | W4: A | X4: C | Y4: P | Z4: S | AA4: S | AB4: A | AC4: P | AD4: A
C5: 0 | D5: =+C5+1 -> 1 | E5: =+D5+1 -> 2 | F5: 3 | G5: 4 | H5: 5 | I5: 6 | J5: 7 | K5: 8 | L5: 9 | M5: 10 | N5: 11 | O5: 12 | P5: 13 | Q5: 14 | R5: 15 | S5: 16 | T5: 17 | U5: 18 | V5: 19 | W5: 20 | X5: 21 | Y5: 22 | Z5: 23 | AA5: 24 | AB5: 25 | AC5: 26 | AD5: 27
B7: 0 | C7: S | D7: C | E7: . | F7: . | G7: P | H7: A | I7: . | J7: . | K7: . | L7: S | AE7: 5
B8: =+B7+1 -> 1 | D8: C | E8: P | F8: P | G8: P | H8: A | I8: C | L8: S | AE8: 0
B9: =+B8+1 -> 2 | E9: P
B10: 3 | F10: P
B11: 4 | G11: P | H11: A | I11: C | J11: . | K11: . | L11: S | M11: P | AE11: 2
B12: 5 | H12: A | I12: C | J12: . | K12: A | L12: S | M12: P | AE12: 0
B13: 6 | I13: C | J13: A | K13: A | L13: S | M13: P | N13: . | O13: . | P13: C | AE13: 1
B14: 7 | J14: A
B15: 8 | K15: A | L15: S | M15: P | N15: A | P15: C | AE15: 0
B16: 9 | L16: S | M16: P | N16: A | O16: . | P16: C | Q16: S | AE16: 1
B17: 10 | M17: P | N17: A | O17: . | P17: C | Q17: S | R17: P | AE17: 1
B18: 11 | N18: A | O18: C | P18: C | Q18: S | R18: P | S18: . | T18: . | U18: . | V18: . | W18: A | AE18: 3
B19: 12 | O19: C
B20: 13 | P20: C | Q20: S | R20: P | S20: C | W20: A | AE20: 0
B21: 14 | Q21: S | R21: P | S21: C | T21: . | U21: . | V21: . | W21: A | X21: . | Y21: . | Z21: . | AA21: S | AE21: 5
B22: 15 | R22: P | S22: C | T22: P | W22: A | AA22: S | AE22: 0
B23: 16 | S23: C | T23: P | U23: C | W23: A | AA23: S | AE23: 0
B24: 17 | T24: P | U24: C | V24: . | W24: A | X24: . | Y24: P | AA24: S | AE24: 2
B25: 18 | U25: C | V25: A | W25: A | X25: C | AE25: 0
B26: 19 | V26: A
B27: 20 | W27: A | X27: C | Y27: P | Z27: . | AA27: S | AB27: A | AE27: 0
B28: 21 | X28: C
B29: 22 | Y29: P | Z29: S | AA29: S | AB29: A | AC29: P | AE29: 0
B30: 23 | Z30: S
B31: 24 | AA31: S
B32: 25 | AB32: A | AC32: P | AD32: A | AE32: 0
B33: 26 | AC33: P
B34: 27 | AD34: A
AE36: =SUM(AE7:AE35) -> 20
C37: =+C4 -> S | D37: =+D4 -> C | E37: P | F37: P | G37: P | H37: A | I37: C | J37: A | K37: A | L37: S | M37: P | N37: A | O37: C | P37: C | Q37: S | R37: P | S37: C | T37: P | U37: C | V37: A | W37: A | X37: C | Y37: P | Z37: S | AA37: S | AB37: A | AC37: P | AD37: A
B39: 0 | C39: S | D39: C | E39: P | F39: . | G39: . | H39: A | I39: . | J39: . | K39: . | L39: S | AE39: 5
B40: =+B39+1 -> 1 | D40: C | E40: P | F40: . | G40: . | H40: A | I40: C | L40: S | AE40: 2
B41: =+B40+1 -> 2 | E41: P
B42: 3 | F42: P
B43: 4 | G43: P | H43: A | I43: C | J43: . | K43: . | L43: S | M43: P | AE43: 2
B44: 5 | H44: A | I44: C | J44: A | K44: . | L44: S | M44: P | AE44: 0
B45: 6 | I45: C | J45: A | K45: . | L45: S | M45: P | N45: . | O45: C | AE45: 2
B46: 7
B47: 8
B48: 9
B49: 10
B50: 11
B51: 12
B52: 13
B53: 14
B54: 15
B55: 16
B56: 17
B57: 18
B58: 19
B59: 20
B60: 21
B61: 22
B62: 23
B63: 24
B64: 25
B65: 26
B66: 27
AE67: =SUM(AE39:AE66) -> 11

Sheet Sheet1
C4: Исходная последовательность | D4: 6 | E4: 4 | F4: 1 | G4: 2 | H4: 4 | I4: 5 | J4: 3 | K4: 4 | L4: 6 | M4: 6 | N4: 4 | O4: 1 | P4: 2 | Q4: 0
C5: Сдвиг на 1 | D5: 0 | E5: =+D4 -> 6 | F5: =+E4 -> 4 | G5: 1 | H5: 2 | I5: 4 | J5: 5 | K5: 3 | L5: 4 | M5: 6 | N5: 6 | O5: 4 | P5: 1 | Q5: 2
D7: =+D4*7+D5 -> 42 | E7: =+E4*7+E5 -> 34 | F7: 11 | G7: 15 | H7: 30 | I7: 39 | J7: 26 | K7: 31 | L7: 46 | M7: 48 | N7: 34 | O7: 11 | P7: 15 | Q7: 2
C8: Отсортированная | D8: 2 | E8: 11 | F8: 11 | G8: 15 | H8: 15 | I8: 26 | J8: 30 | K8: 31 | L8: 34 | M8: 34 | N8: 39 | O8: 42 | P8: 46 | Q8: 48
C11: Что идет после отсортированной | D11: 42 | E11: 15 | F11: 15 | G11: 30 | H11: 2 | I11: 31 | J11: 39 | K11: 46 | L11: 11 | M11: 11 | N11: 26 | O11: 34 | P11: 48 | Q11: 34
C12: Модуль | D12: 0 | E12: 1 | F12: 1 | G12: 2 | H12: 2 | I12: 3 | J12: 4 | K12: 4 | L12: 4 | M12: 4 | N12: 5 | O12: 6 | P12: 6 | Q12: 6
C13: Делитель | D13: 6 | E13: 2 | F13: 2 | G13: 4 | H13: 0 | I13: 4 | J13: 5 | K13: 6 | L13: 1 | M13: 1 | N13: 3 | O13: 4 | P13: 6 | Q13: 4
D16: =+D11 -> 42 | E16: =+E11 -> 15 | F16: 15 | G16: 30 | H16: 2 | I16: 31 | J16: 39 | K16: 46 | L16: 11 | M16: 11 | N16: 26 | O16: 34 | P16: 48 | Q16: 34
D17: =+D8 -> 2 | E17: =+E8 -> 11 | F17: 11 | G17: 15 | H17: 15 | I17: 26 | J17: 30 | K17: 31 | L17: 34 | M17: 34 | N17: 39 | O17: 42 | P17: 46 | Q17: 48
D22: =+D4 -> 6 | E22: =+E4 -> 4 | F22: 1 | G22: 2 | H22: 4 | I22: 5 | J22: 3 | K22: 4 | L22: 6 | M22: 6 | N22: 4 | O22: 1 | P22: 2 | Q22: 0
D23: 0 | E23: =+D22 -> 6 | F23: =+E22 -> 4 | G23: 1 | H23: 2 | I23: 4 | J23: 5 | K23: 3 | L23: 4 | M23: 6 | N23: 6 | O23: 4 | P23: 1 | Q23: 2
D24: 2 | E24: =+D23 -> 0 | F24: 6 | G24: 4 | H24: 1 | I24: 2 | J24: 4 | K24: 5 | L24: 3 | M24: 4 | N24: 6 | O24: 6 | P24: 4 | Q24: 1
D27: =+D22*49+D23*7+D24 -> 296 | E27: =+E22*49+E23*7+E24 -> 238 | F27: 83 | G27: 109 | H27: 211 | I27: 275 | J27: 186 | K27: 222 | L27: 325 | M27: 340 | N27: 244 | O27: 83 | P27: 109 | Q27: 15
D28: 15 | E28: 83 | F28: 83 | G28: 109 | H28: 109 | I28: 186 | J28: 211 | K28: 222 | L28: 238 | M28: 244 | N28: 275 | O28: 296 | P28: 325 | Q28: 340
D30: 296 | E30: 109 | F30: 109 | G30: 211 | H30: 15 | I30: 222 | J30: 275 | K30: 325 | L30: 83 | M30: 83 | N30: 186 | O30: 238 | P30: 340 | Q30: 244
D32: 6 | E32: 2 | F32: 2 | G32: 4 | H32: 0 | I32: 4 | J32: 5 | K32: 6 | L32: 1 | M32: 1 | N32: 3 | O32: 4 | P32: 6 | Q32: 4
D33: 0 | E33: 1 | F33: 1 | G33: 2 | H33: 2 | I33: 3 | J33: 4 | K33: 4 | L33: 4 | M33: 4 | N33: 5 | O33: 6 | P33: 6 | Q33: 6
D35: =+D32*7+D33 -> 42 | E35: =+E32*7+E33 -> 15 | F35: 15 | G35: 30 | H35: 2 | I35: 31 | J35: 39 | K35: 46 | L35: 11 | M35: 11 | N35: 26 | O35: 34 | P35: 48 | Q35: 34
D36: =+D17 -> 2 | E36: =+E17 -> 11 | F36: 11 | G36: 15 | H36: 15 | I36: 26 | J36: 30 | K36: 31 | L36: 34 | M36: 34 | N36: 39 | O36: 42 | P36: 46 | Q36: 48
C37: Модуль | D37: 2 | E37: 4 | F37: 4 | G37: 1 | H37: 1 | I37: 5 | J37: 2 | K37: 3 | L37: 6 | M37: 6 | N37: 4 | O37: 0 | P37: 4 | Q37: 6
D39: =+D32*49+D33*7+D37 -> 296 | E39: =+E32*49+E33*7+E37 -> 109 | F39: 109 | G39: 211 | H39: 15 | I39: 222 | J39: 275 | K39: 325 | L39: 83 | M39: 83 | N39: 186 | O39: 238 | P39: 340 | Q39: 244
